bitfinex/quotes_BTCUSD_20241024
["timestamp","ask_amount","ask_price","bid_price","bid_amount"]
[1729779506543,0.15050381,67605.0,67595.0,0.000826]
[1729779506791,0.21747657,67605.0,67596.0,0.147936]
[1729779507045,0.15050381,67605.0,67596.0,0.147937]
[1729779507293,0.15050381,67605.0,67597.0,0.147934]
[1729779507596,0.001652,67606.0,67598.0,0.005]
[1729779507782,0.001652,67606.0,67605.0,0.149918]
[1729779508242,0.001652,67606.0,67605.0,0.154918]
[1729779509706,0.001652,67606.0,67605.0,0.149918]
[1729779509935,0.001652,67606.0,67605.0,0.154918]
[1729779510398,0.001652,67606.0,67605.0,0.002]
[1729779510877,0.001652,67606.0,67605.0,0.149918]
[1729779511342,0.001652,67606.0,67604.0,0.007]
[1729779511583,0.001652,67606.0,67603.0,0.005]
[1729779512036,0.001652,67606.0,67603.0,0.152921]
[1729779512261,0.001652,67606.0,67603.0,0.005]
[1729779512783,0.001652,67606.0,67605.0,0.002]
[1729779513013,0.001652,67606.0,67603.0,0.005]
[1729779513913,0.001652,67606.0,67599.0,0.239]
[1729779514137,0.001652,67606.0,67599.0,0.234]
[1729779514368,0.147925,67602.0,67599.0,0.234]
[1729779514614,0.29584,67604.0,67599.0,0.234]
[1729779514822,0.147924,67602.0,67599.0,0.234]
[1729779515047,0.295853,67601.0,67599.0,0.1581]
[1729779515288,0.295853,67601.0,67595.0,0.000826]
[1729779515289,0.443785,67600.0,67595.0,0.000826]
[1729779515515,0.147937,67596.0,67595.0,0.000826]
[1729779515741,0.31223472,67596.0,67595.0,0.000826]
[1729779515970,0.16429772,67596.0,67595.0,0.000826]
[1729779516227,0.62884446,67596.0,67595.0,0.000826]
[1729779516442,0.75184446,67596.0,67595.0,0.000826]
[1729779516667,0.53009366,67596.0,67595.0,0.000826]
[1729779516947,0.78561101,67596.0,67595.0,0.000826]
[1729779517681,0.7718171,67596.0,67595.0,0.000826]
[1729779517906,0.67695816,67596.0,67595.0,0.000826]
[1729779518131,0.69076462,67596.0,67595.0,0.000826]
[1729779518628,0.70306307,67596.0,67595.0,0.000826]
[1729779520270,0.68006307,67596.0,67595.0,0.000826]
[1729779521021,0.41224727,67596.0,67595.0,0.000826]
[1729779521274,0.41223338,67596.0,67595.0,0.000826]
[1729779521508,0.01379257,67596.0,67595.0,0.000826]
[1729779521761,0.03,67597.0,67595.0,0.000826]
[1729779523151,0.03,67597.0,67596.0,0.005]
[1729779523401,0.03,67597.0,67595.0,0.000826]
[1729779523637,0.2217508,67601.0,67595.0,0.000826]
[1729779524119,0.147934,67598.0,67595.0,0.000826]
[1729779524356,0.15050381,67598.0,67595.0,0.000826]
[1729779525023,0.147937,67596.0,67595.0,0.000826]
[1729779526387,0.39844081,67596.0,67595.0,0.000826]
[1729779527324,0.295884,67594.0,67583.0,0.2303488]
[1729779527554,0.15050381,67593.0,67583.0,0.3783138]
[1729779527790,0.14795,67591.0,67583.0,0.3783138]
[1729779528008,0.15050381,67593.0,67588.0,0.002]
[1729779528475,0.03,67597.0,67588.0,0.002]
[1729779528702,0.03,67597.0,67585.0,0.002]
[1729779528927,0.03,67597.0,67591.0,0.147947]
[1729779529145,0.03,67597.0,67596.0,0.002]
[1729779529373,0.03,67597.0,67595.0,0.002]
[1729779529809,0.03,67597.0,67591.0,0.01]
[1729779530035,0.23269578,67597.0,67591.0,0.01]
[1729779530257,0.177935,67597.0,67591.0,0.01]
[1729779530481,0.03,67597.0,67591.0,0.01]
[1729779530924,0.01380774,67596.0,67592.0,0.147945]
[1729779531142,0.01380774,67595.0,67591.0,0.01]
[1729779531357,0.01380774,67594.0,67591.0,0.307895]
[1729779531571,0.01380774,67593.0,67591.0,0.159948]
[1729779531787,0.03,67597.0,67591.0,0.159948]
[1729779531788,0.01380774,67592.0,67591.0,0.159948]
[1729779532282,0.03,67597.0,67595.0,0.002]
[1729779532735,0.01381099,67596.0,67591.0,0.012]
[1729779532962,0.2217508,67601.0,67591.0,0.012]
[1729779532963,0.01381099,67595.0,67591.0,0.012]
[1729779533207,0.01381099,67594.0,67592.0,0.147946]
[1729779533427,0.01381099,67594.0,67591.0,0.01]
[1729779533428,0.01381099,67593.0,67591.0,0.01]
[1729779533654,0.2217508,67601.0,67591.0,0.01]
[1729779533655,0.01381099,67592.0,67591.0,0.01]
[1729779535526,0.01381099,67592.0,67591.0,0.38615181]
[1729779535747,0.2217508,67609.0,67602.0,0.157923]
[1729779535995,0.2217508,67609.0,67603.0,0.005]
[1729779536210,0.2217508,67609.0,67603.0,0.01]
[1729779536424,0.2217508,67609.0,67605.0,0.147918]
[1729779536640,0.2217508,67609.0,67603.0,0.01]
[1729779536859,0.2217508,67617.0,67604.0,0.147918]
[1729779537082,0.1,67616.0,67604.0,0.147918]
[1729779537308,0.1,67616.0,67603.0,0.01]
[1729779537309,0.1,67614.0,67603.0,0.01]
[1729779537531,0.001652,67605.0,67603.0,0.01]
[1729779538430,0.001652,67605.0,67603.0,0.012]
[1729779538645,0.001652,67605.0,67603.0,0.01]
[1729779538861,0.001652,67605.0,67603.0,0.157922]
[1729779539083,0.001652,67605.0,67603.0,0.01]
[1729779539816,0.001652,67605.0,67604.0,0.14792]
[1729779540038,0.001652,67605.0,67604.0,0.23892]
[1729779540919,0.001652,67605.0,67604.0,0.24092]
[1729779541166,0.001652,67605.0,67604.0,0.23892]
[1729779541615,0.001652,67605.0,67604.0,0.091]
[1729779541836,0.001652,67605.0,67604.0,0.081]
[1729779542759,0.001652,67605.0,67604.0,0.22892]
[1729779542985,0.001652,67605.0,67604.0,0.38702]
[1729779543221,0.001652,67605.0,67604.0,0.39902]
[1729779543434,0.001652,67605.0,67604.0,0.54752381]
[1729779543435,0.00105908,67605.0,67604.0,0.54752381]
[1729779543888,0.00105908,67605.0,67604.0,0.54952381]
[1729779544542,0.00105908,67605.0,67604.0,0.39902]
[1729779544993,0.00105908,67605.0,67604.0,0.65453735]
[1729779545219,0.00105908,67605.0,67604.0,0.80304116]
[1729779546132,0.00105908,67605.0,67604.0,0.81004116]
[1729779546803,0.00105908,67605.0,67604.0,0.80804116]
[1729779547025,0.001652,67606.0,67605.0,0.164918]
[1729779547242,0.001652,67606.0,67605.0,0.58697952]
[1729779547490,0.001652,67606.0,67605.0,0.58602181]
[1729779547713,0.2217508,67624.0,67623.0,0.01]
[1729779547952,0.2217508,67624.0,67623.0,0.64699916]
[1729779548394,0.2217508,67632.0,67627.0,0.147868]
[1729779548653,0.2217508,67632.0,67623.0,0.0931]
[1729779548876,0.295708,67635.0,67623.0,0.0931]
[1729779548877,0.25551735,67638.0,67627.0,0.002]
[1729779549100,0.25551735,67638.0,67625.0,0.01]
[1729779549101,0.40602116,67638.0,67625.0,0.01]
[1729779549347,0.40602116,67638.0,67623.0,0.0811]
[1729779549348,0.295709,67634.0,67623.0,0.0811]
[1729779549788,0.50726815,67632.0,67623.0,0.0811]
[1729779550025,0.15050381,67631.0,67619.0,0.2317508]
[1729779550247,0.147873,67626.0,67619.0,0.2317508]
[1729779550463,0.147872,67626.0,67620.0,0.005]
[1729779550684,0.29574,67627.0,67620.0,0.005]
[1729779550910,0.147873,67626.0,67620.0,0.01]
[1729779551129,0.295731,67629.0,67620.0,0.01]
[1729779551380,0.147872,67626.0,67620.0,0.01]
[1729779551604,0.07719568,67629.0,67620.0,0.01]
[1729779551822,0.147872,67626.0,67618.0,0.147888]
[1729779552043,0.44622581,67631.0,67620.0,0.01]
[1729779552267,0.147868,67628.0,67620.0,0.157884]
[1729779552532,0.03,67632.0,67627.0,0.147869]
[1729779552747,0.2217508,67631.0,67627.0,0.157869]
[1729779552972,0.03,67632.0,67626.0,0.2031]
[1729779553201,0.03,67632.0,67627.0,0.01]
[1729779553643,0.03,67632.0,67620.0,0.01]
[1729779553644,0.0473565,67631.0,67620.0,0.01]
[1729779553879,0.15050381,67631.0,67620.0,0.2217508]
[1729779554096,0.147883,67621.0,67620.0,0.005]
[1729779554323,0.147888,67619.0,67614.0,0.0911]
[1729779554555,0.2958,67614.0,67609.0,0.2317508]
[1729779554782,0.25551735,67619.0,67609.0,0.2317508]
[1729779554783,0.147901,67613.0,67609.0,0.2317508]
[1729779555019,0.147905,67611.0,67609.0,0.01]
[1729779555248,0.25551735,67619.0,67607.0,0.0769]
[1729779555249,0.295804,67613.0,67607.0,0.0769]
[1729779555473,0.295805,67612.0,67607.0,0.0769]
[1729779555727,0.147911,67608.0,67607.0,0.0769]
[1729779555966,0.147928,67600.0,67599.0,0.0793]
[1729779556183,0.15050381,67607.0,67595.0,0.2217508]
[1729779556409,0.147934,67598.0,67596.0,0.2217508]
[1729779556602,0.19110593,67607.0,67598.0,0.005]
[1729779556603,0.147923,67603.0,67598.0,0.005]
[1729779556860,0.295849,67602.0,67598.0,0.005]
[1729779557101,0.295849,67602.0,67597.0,0.005]
[1729779557321,0.147928,67600.0,67598.0,0.005]
[1729779557596,0.147924,67602.0,67598.0,0.005]
[1729779557826,0.2217508,67615.0,67609.0,0.01]
[1729779558077,0.2217508,67615.0,67610.0,0.147907]
[1729779558306,0.1,67619.0,67610.0,0.372114]
[1729779558538,0.2217508,67618.0,67614.0,0.147898]
[1729779558757,0.15050381,67620.0,67611.0,0.01]
[1729779558986,0.15050381,67620.0,67612.0,0.147902]
[1729779559253,0.15050381,67620.0,67611.0,0.01]
[1729779559472,0.15050381,67620.0,67611.0,0.305806]
[1729779559698,0.29839081,67620.0,67611.0,0.157903]
[1729779559932,0.15050381,67620.0,67611.0,0.2317508]
[1729779560170,0.15050381,67620.0,67611.0,0.012]
[1729779560415,0.15050381,67620.0,67615.0,0.005]
[1729779560631,0.147879,67623.0,67615.0,0.005]
[1729779560860,0.15050381,67622.0,67616.0,0.005]
[1729779561108,0.1,67627.0,67616.0,0.01]
[1729779561324,0.15050381,67627.0,67620.0,0.147884]
[1729779561553,0.15050381,67627.0,67618.0,0.305779]
[1729779561554,0.295748,67625.0,67618.0,0.01]
[1729779561783,0.14788,67622.0,67618.0,0.01]
[1729779562009,0.25551735,67620.0,67609.0,0.000825]
[1729779562258,0.295792,67616.0,67609.0,0.000825]
[1729779562481,0.1,67622.0,67615.0,0.2217508]
[1729779562729,0.1,67622.0,67613.0,0.25551735]
[1729779562978,0.00165,67624.0,67617.0,0.25551735]
[1729779563210,0.00165,67624.0,67617.0,0.14789]
[1729779563428,0.00165,67624.0,67615.0,0.01]
[1729779563662,0.295769,67621.0,67615.0,0.01]
[1729779563889,0.295769,67621.0,67616.0,0.2217508]
[1729779564118,0.295769,67621.0,67612.0,0.01]
[1729779564119,0.29577,67620.0,67612.0,0.01]
[1729779564346,0.14789,67618.0,67613.0,0.01]
[1729779564576,0.147881,67622.0,67613.0,0.01]
[1729779564795,0.00165,67624.0,67615.0,0.48726815]
[1729779565029,0.149527,67624.0,67615.0,0.26551735]
[1729779565321,0.14788,67623.0,67615.0,0.26551735]
[1729779565543,0.14788,67623.0,67615.0,0.01]
[1729779565544,0.147893,67616.0,67615.0,0.01]
[1729779566006,0.15050381,67623.0,67611.0,0.2217508]
[1729779566007,0.295761,67622.0,67613.0,0.01]
[1729779566464,0.147894,67616.0,67612.0,0.01]
[1729779567003,0.29577,67620.0,67612.0,0.01]
[1729779567237,0.147907,67610.0,67609.0,0.000825]
[1729779567956,0.39841081,67610.0,67609.0,0.000825]
[1729779568191,0.74301086,67610.0,67609.0,0.000825]
[1729779568444,0.83967279,67610.0,67609.0,0.000825]
[1729779568668,0.67226571,67610.0,67609.0,0.000825]
[1729779568902,0.82276952,67610.0,67609.0,0.000825]
[1729779569123,0.8365633,67610.0,67609.0,0.000825]
[1729779570070,0.82276952,67610.0,67609.0,0.000825]
[1729779570309,0.73465925,67610.0,67609.0,0.000825]
[1729779570580,0.9951766,67610.0,67609.0,0.000825]
[1729779571000,0.9901766,67610.0,67609.0,0.000825]
[1729779571234,0.9951766,67610.0,67609.0,0.000825]
[1729779571511,1.2631766,67610.0,67609.0,0.000825]
[1729779571733,0.73465925,67610.0,67609.0,0.000825]
[1729779571980,0.59793239,67610.0,67609.0,0.000825]
[1729779572228,0.85344974,67610.0,67609.0,0.000825]
[1729779572937,0.96362794,67610.0,67609.0,0.000825]
[1729779573218,0.96356687,67610.0,67609.0,0.000825]
[1729779573447,1.00389306,67610.0,67609.0,0.000825]
[1729779573700,0.99011611,67610.0,67609.0,0.000825]
[1729779573948,1.12784196,67610.0,67609.0,0.000825]
[1729779574219,1.00388487,67610.0,67609.0,0.000825]
[1729779574463,1.11404508,67610.0,67609.0,0.000825]
[1729779574686,1.00388487,67610.0,67609.0,0.000825]
[1729779577021,1.01763759,67610.0,67609.0,0.000825]
[1729779577488,1.00379148,67610.0,67609.0,0.000825]
[1729779577961,1.00879148,67610.0,67609.0,0.000825]
[1729779578677,1.26430883,67610.0,67609.0,0.000825]
[1729779578922,0.1,67595.0,67583.0,0.000826]
[1729779579164,0.52647035,67589.0,67583.0,0.000826]
[1729779579396,0.54022307,67589.0,67583.0,0.000826]
[1729779579636,0.147964,67584.0,67583.0,0.000826]
[1729779579864,0.16171672,67584.0,67583.0,0.000826]
[1729779581002,0.01375272,67584.0,67583.0,0.010826]
[1729779581260,0.16171672,67584.0,67583.0,0.010826]
[1729779581490,0.16171672,67584.0,67583.0,0.000826]
[1729779581720,0.16171672,67584.0,67583.0,0.010826]
[1729779582218,0.16171672,67584.0,67583.0,0.000826]
[1729779583146,0.16171672,67584.0,67583.0,0.005826]
[1729779583594,0.16171672,67584.0,67583.0,0.000826]
[1729779583822,0.16171672,67584.0,67583.0,0.005826]
[1729779584761,0.01375272,67584.0,67583.0,0.007826]
[1729779584983,0.01374589,67584.0,67583.0,0.092126]
[1729779585214,0.147964,67584.0,67583.0,0.085126]
[1729779585442,0.147964,67584.0,67583.0,0.080126]
[1729779586181,0.41722585,67584.0,67583.0,0.080126]
[1729779586410,0.48059384,67584.0,67583.0,0.000826]
[1729779587087,0.46684934,67584.0,67583.0,0.000826]
[1729779588030,0.46684934,67584.0,67583.0,0.100826]
[1729779588260,0.4805875,67584.0,67583.0,0.100826]
[1729779588493,0.77520579,67584.0,67583.0,0.100826]
[1729779589214,0.66796274,67584.0,67583.0,0.100826]
[1729779590614,0.41220597,67584.0,67583.0,0.100826]
[1729779591792,0.41221017,67584.0,67583.0,0.100826]
[1729779592796,0.69596694,67584.0,67583.0,0.100826]
[1729779593282,0.48415079,67584.0,67583.0,0.100826]
[1729779593513,0.56946243,67584.0,67583.0,0.100826]
[1729779593738,0.15297,67581.0,67580.0,9e-05]
[1729779593967,0.73986886,67581.0,67580.0,9e-05]
[1729779594194,0.69597294,67581.0,67580.0,9e-05]
[1729779594423,0.84647675,67581.0,67580.0,9e-05]
[1729779594892,0.58571998,67581.0,67580.0,9e-05]
[1729779595601,0.57197762,67581.0,67580.0,9e-05]
[1729779595854,0.585726,67581.0,67580.0,9e-05]
[1729779597040,0.43522219,67581.0,67580.0,9e-05]
[1729779600596,0.41222219,67581.0,67580.0,9e-05]
[1729779601116,0.43522219,67581.0,67580.0,9e-05]
[1729779601391,0.43523733,67581.0,67580.0,9e-05]
[1729779601643,0.6909941,67581.0,67580.0,9e-05]
[1729779601865,0.58574114,67581.0,67580.0,9e-05]
[1729779602394,0.59074114,67581.0,67580.0,9e-05]
[1729779602895,0.58574114,67581.0,67580.0,9e-05]
[1729779603154,0.43523733,67581.0,67580.0,9e-05]
[1729779603638,0.43523733,67581.0,67580.0,0.07619]
[1729779603639,0.16173352,67581.0,67580.0,0.07619]
[1729779603867,0.01376352,67581.0,67580.0,0.08619]
[1729779604348,0.16173352,67581.0,67580.0,0.08619]
[1729779604567,0.01376352,67581.0,67580.0,0.416362]
[1729779604801,0.01377156,67581.0,67580.0,0.52514677]
[1729779605063,0.01377156,67581.0,67580.0,0.418362]
[1729779605788,0.01377156,67581.0,67580.0,0.27039]
[1729779606025,0.16174156,67581.0,67580.0,0.25839]
[1729779606288,0.21948086,67581.0,67580.0,0.25839]
[1729779606538,0.16174156,67581.0,67580.0,0.26839]
[1729779606751,0.01377156,67581.0,67580.0,0.26839]
[1729779607732,0.01377156,67581.0,67580.0,0.418362]
[1729779608196,0.01377156,67581.0,67580.0,0.27039]
[1729779608690,0.01377156,67581.0,67580.0,0.371216]
[1729779609395,0.01377156,67581.0,67580.0,0.369216]
[1729779611503,0.147969,67582.0,67581.0,0.01]
[1729779611961,0.14797,67581.0,67580.0,0.369216]
[1729779612204,0.1617411,67581.0,67580.0,0.369216]
[1729779612442,0.1617411,67581.0,67580.0,0.359216]
[1729779612666,0.1617411,67581.0,67580.0,0.177016]
[1729779612890,0.1617411,67581.0,67580.0,0.187016]
[1729779613120,0.1617411,67581.0,67580.0,0.177016]
[1729779613340,0.1617411,67581.0,67580.0,0.187016]
[1729779613785,0.1617411,67581.0,67580.0,0.177016]
[1729779614011,0.25113942,67581.0,67580.0,0.177016]
[1729779614232,0.40164323,67581.0,67580.0,0.100916]
[1729779615125,0.31224491,67581.0,67580.0,0.100916]
[1729779615346,0.31224491,67581.0,67580.0,0.105916]
[1729779615598,0.31224491,67581.0,67580.0,0.100916]
[1729779615822,0.31224491,67581.0,67580.0,0.112916]
[1729779615823,0.0137711,67581.0,67580.0,0.112916]
[1729779616063,0.1617411,67581.0,67580.0,0.112916]
[1729779617664,0.1617411,67581.0,67580.0,0.110916]
[1729779618591,0.14797,67581.0,67580.0,0.110916]
[1729779618835,0.01376934,67581.0,67580.0,0.110916]
[1729779619040,0.16173934,67581.0,67580.0,0.112916]
[1729779619254,0.01376934,67581.0,67580.0,0.112916]
[1729779619516,0.16173934,67581.0,67580.0,0.112916]
[1729779619724,0.16173934,67581.0,67580.0,0.189816]
[1729779620164,0.16173934,67581.0,67580.0,0.187816]
[1729779620872,0.16173934,67581.0,67580.0,0.189816]
[1729779621097,0.16173934,67581.0,67580.0,0.187816]
[1729779621980,0.01376934,67581.0,67580.0,0.50608075]
[1729779622208,0.01376934,67581.0,67580.0,0.35810875]
[1729779622435,0.001652,67583.0,67580.0,0.35810875]
[1729779622436,0.001652,67583.0,67582.0,0.159968]
[1729779622656,0.01542642,67583.0,67582.0,0.1936]
[1729779622884,0.01542642,67583.0,67582.0,0.012]
[1729779623110,0.01542642,67583.0,67581.0,0.01]
[1729779623337,0.14797,67581.0,67580.0,0.189816]
[1729779623570,0.16174442,67581.0,67580.0,0.187816]
[1729779625653,0.16174442,67581.0,67580.0,0.189816]
[1729779625899,0.04573944,67583.0,67580.0,0.189816]
[1729779626135,0.149618,67583.0,67582.0,0.002]
[1729779626418,0.16339662,67583.0,67582.0,0.002]
[1729779627321,0.147968,67582.0,67581.0,0.16174442]
[1729779627552,0.443904,67582.0,67581.0,0.16174442]
[1729779627797,0.443904,67582.0,67581.0,0.16374442]
[1729779628032,0.443904,67582.0,67581.0,0.16174442]
[1729779629202,0.50304181,67582.0,67581.0,0.16174442]
[1729779631195,0.443904,67582.0,67581.0,0.16174442]
[1729779631642,0.44866476,67582.0,67581.0,0.16174442]
[1729779632586,1.10185056,67582.0,67581.0,0.16174442]
[1729779632839,1.22639558,67582.0,67581.0,0.16174442]
[1729779633311,1.22639558,67582.0,67580.0,0.100916]
[1729779633312,0.005,67581.0,67580.0,0.07937741]
[1729779633523,1.10029125,67581.0,67580.0,0.07937741]
[1729779633737,0.97193193,67581.0,67580.0,0.07937741]
[1729779634225,0.97193193,67581.0,67558.0,0.2217508]
[1729779634226,0.148018,67559.0,67558.0,0.2217508]
[1729779634437,0.41631075,67559.0,67558.0,0.2217508]
[1729779634666,0.46410954,67559.0,67558.0,0.2217508]
[1729779634897,0.46410954,67559.0,67554.0,0.005]
[1729779634898,0.148027,67555.0,67554.0,0.005]
[1729779635107,0.148026,67556.0,67554.0,0.007]
[1729779635375,0.15178669,67555.0,67554.0,0.007]
[1729779635593,0.00375969,67555.0,67554.0,0.18029275]
[1729779635782,0.00375969,67555.0,67554.0,0.40702175]
[1729779636039,0.148019,67559.0,67554.0,0.40702175]
[1729779636040,0.148019,67559.0,67556.0,0.01]
[1729779636265,0.14802,67559.0,67556.0,0.01]
[1729779636486,0.3735271,67558.0,67557.0,0.005]
[1729779636719,0.1517763,67558.0,67557.0,0.005]
[1729779636953,0.4478183,67558.0,67557.0,0.005]
[1729779637185,0.2997983,67558.0,67557.0,0.005]
[1729779637415,0.2997983,67558.0,67554.0,0.0787]
[1729779637643,0.148036,67551.0,67550.0,0.012]
[1729779637865,0.16179705,67551.0,67550.0,0.012]
[1729779638092,0.16554793,67551.0,67550.0,0.012]
[1729779638354,0.16554793,67551.0,67548.0,0.2593]
[1729779638355,0.14804,67549.0,67548.0,0.0752]
[1729779638595,0.14804,67549.0,67547.0,0.000837]
[1729779638596,0.148042,67548.0,67547.0,0.000837]
[1729779638818,0.16180305,67548.0,67547.0,0.000837]
[1729779639067,0.30742871,67548.0,67547.0,0.000837]
[1729779639317,0.45793252,67548.0,67547.0,0.000837]
[1729779639554,0.0175124,67548.0,67547.0,0.005837]
[1729779639782,0.00375135,67548.0,67547.0,0.158882]
[1729779640029,0.00375135,67548.0,67547.0,0.240282]
[1729779640266,0.2217508,67556.0,67547.0,0.240282]
[1729779640267,0.16179405,67553.0,67547.0,0.240282]
[1729779640498,0.2217508,67556.0,67547.0,0.240282]
[1729779640499,0.2217508,67556.0,67555.0,0.002]
[1729779640716,0.148025,67556.0,67555.0,0.002]
[1729779640964,0.2220348,67556.0,67555.0,0.002]
[1729779641197,0.23577254,67556.0,67555.0,0.002]
[1729779641435,0.01373774,67556.0,67555.0,0.160027]
[1729779641709,0.148024,67557.0,67556.0,0.012]
[1729779641939,0.16176174,67557.0,67556.0,0.002]
[1729779642199,0.1,67562.0,67558.0,0.002]
[1729779642453,0.148018,67559.0,67558.0,0.002]
[1729779642707,0.01373508,67559.0,67558.0,0.002]
[1729779643148,0.01373508,67561.0,67558.0,0.002]
[1729779643433,0.2217508,67559.0,67557.0,0.01]
[1729779643669,0.2217508,67559.0,67552.0,0.1988]
[1729779643670,0.148031,67553.0,67552.0,0.01]
[1729779643904,0.148031,67553.0,67552.0,0.012]
[1729779644150,0.14804,67549.0,67548.0,0.012]
[1729779644626,0.148042,67548.0,67547.0,0.082237]
[1729779644884,0.16177708,67548.0,67547.0,0.000837]
[1729779645326,0.31228089,67548.0,67547.0,0.000837]
[1729779645578,0.42413224,67548.0,67547.0,0.000837]
[1729779646503,0.64588304,67548.0,67547.0,0.000837]
[1729779646731,0.77250514,67548.0,67547.0,0.000837]
[1729779646963,0.61671462,67548.0,67547.0,0.000837]
[1729779647242,0.80075618,67548.0,67547.0,0.000837]
[1729779647717,0.83832348,67548.0,67547.0,0.000837]
[1729779648001,0.83832348,67548.0,67541.0,0.000837]
[1729779648002,0.43934875,67542.0,67541.0,0.000837]
[1729779648234,0.58985256,67542.0,67541.0,0.000837]
[1729779648483,0.59347228,67542.0,67541.0,0.000837]
[1729779648722,0.25412353,67542.0,67541.0,0.000837]
[1729779648977,0.25412353,67542.0,67541.0,0.002837]
[1729779648978,0.15167572,67542.0,67541.0,0.002837]
[1729779649184,0.00361972,67542.0,67541.0,0.002837]
[1729779649404,0.01733275,67542.0,67541.0,0.012837]
[1729779649658,0.2217508,67550.0,67544.0,0.160051]
[1729779649659,0.01370905,67545.0,67544.0,0.160051]
[1729779649901,0.01370905,67545.0,67541.0,0.296951]
[1729779649902,0.148056,67542.0,67541.0,0.000837]
[1729779650368,0.29855981,67542.0,67541.0,0.000837]
[1729779650597,0.00361811,67542.0,67541.0,0.000837]
[1729779650842,0.00361811,67542.0,67541.0,0.158895]
[1729779651119,0.00361811,67542.0,67541.0,0.160895]
[1729779651359,0.38349885,67550.0,67549.0,0.01]
[1729779651360,0.2217508,67550.0,67549.0,0.01]
[1729779651593,0.23546798,67550.0,67549.0,0.01]
[1729779651812,0.01735696,67550.0,67549.0,0.01]
[1729779652040,0.00363978,67550.0,67549.0,0.01]
[1729779652280,0.04574833,67550.0,67549.0,0.01]
[1729779652513,0.148038,67550.0,67549.0,0.012]
[1729779652731,0.00363002,67550.0,67549.0,0.01]
[1729779652964,0.00363002,67550.0,67549.0,0.24154]
[1729779653177,0.2217508,67557.0,67549.0,0.0915]
[1729779653399,0.2217508,67557.0,67556.0,0.160025]
[1729779653644,0.2217508,67566.0,67560.0,0.148015]
[1729779653869,0.3697558,67566.0,67564.0,0.002]
[1729779654111,0.148005,67565.0,67564.0,0.002]
[1729779654402,0.14801,67563.0,67562.0,0.01]
[1729779654850,0.16173803,67563.0,67562.0,0.01]
[1729779655275,0.16173803,67563.0,67558.0,0.01]
[1729779655535,0.148017,67560.0,67559.0,0.01]
[1729779655766,0.01372803,67560.0,67559.0,0.01]
[1729779656010,0.01372803,67560.0,67559.0,0.158018]
[1729779656263,0.01372803,67560.0,67559.0,0.160018]
[1729779657958,0.01372803,67560.0,67559.0,0.158018]
[1729779658236,0.01372803,67560.0,67559.0,0.012]
[1729779658471,0.01372803,67560.0,67559.0,0.01]
[1729779658972,0.14801,67563.0,67562.0,0.01]
[1729779659230,0.2217508,67567.0,67564.0,0.002]
[1729779659491,0.247992,67571.0,67570.0,0.002]
[1729779659718,0.247992,67571.0,67564.0,0.01]
[1729779659719,0.148005,67565.0,67564.0,0.01]
[1729779659959,0.395998,67568.0,67564.0,0.01]
[1729779660195,0.148005,67565.0,67564.0,0.01]
[1729779660712,0.1,67575.0,67568.0,0.295998]
[1729779660980,0.5176608,67588.0,67579.0,0.002]
[1729779660981,0.443917,67580.0,67579.0,0.002]
[1729779661199,0.443917,67580.0,67577.0,0.01]
[1729779661200,0.147977,67578.0,67577.0,0.01]
[1729779661701,0.147977,67578.0,67564.0,0.2678]
[1729779661702,0.148005,67565.0,67564.0,0.2678]
[1729779661937,0.25937088,67578.0,67564.0,0.2678]
[1729779661938,0.25937088,67578.0,67564.0,0.2778]
[1729779662187,0.148001,67567.0,67566.0,0.01]
[1729779662895,0.148001,67567.0,67566.0,0.012]
[1729779663123,0.148001,67567.0,67566.0,0.01]
[1729779664067,0.148001,67567.0,67566.0,0.012]
[1729779664305,0.148001,67567.0,67566.0,0.01]
[1729779664523,0.148001,67567.0,67566.0,0.012]
[1729779664749,0.148001,67567.0,67566.0,0.01]
[1729779665450,0.0563001,67578.0,67566.0,0.01]
[1729779665451,0.147997,67569.0,67568.0,0.002]
[1729779665674,0.44397,67572.0,67571.0,0.01]
[1729779666391,0.44397,67572.0,67571.0,0.012]
[1729779666392,0.14799,67572.0,67571.0,0.012]
[1729779666862,0.147978,67578.0,67577.0,0.01]
[1729779667523,0.26611259,67578.0,67577.0,0.01]
[1729779667745,0.147978,67578.0,67577.0,0.01]
[1729779668172,0.295945,67580.0,67577.0,0.01]
[1729779668397,0.147977,67578.0,67577.0,0.005]
[1729779669078,0.44878814,67578.0,67577.0,0.005]
[1729779669533,0.29848081,67578.0,67577.0,0.005]
[1729779670025,0.295976,67573.0,67571.0,0.01]
[1729779670292,0.147988,67573.0,67572.0,0.01]
[1729779670961,0.16173268,67573.0,67572.0,0.01]
[1729779671202,0.01374468,67573.0,67572.0,0.01]
[1729779671438,0.16173268,67573.0,67572.0,0.01]
[1729779671898,0.147994,67570.0,67569.0,0.01]
[1729779672121,0.16173868,67570.0,67569.0,0.01]
[1729779673719,0.295994,67569.0,67564.0,0.2678]
[1729779674000,0.295994,67569.0,67557.0,0.296044]
[1729779674001,0.14802,67558.0,67557.0,0.0828]
[1729779674232,0.296006,67566.0,67554.0,0.1965]
[1729779674233,0.148012,67562.0,67561.0,0.01]
[1729779674461,0.148012,67562.0,67554.0,0.002]
[1729779674462,0.0137413,67562.0,67554.0,0.002]
[1729779674703,0.0137413,67562.0,67550.0,0.0808]
[1729779674704,0.148016,67560.0,67559.0,0.01]
[1729779674926,0.1617573,67560.0,67559.0,0.01]
[1729779675167,0.0137413,67560.0,67559.0,0.01]
[1729779675383,0.0137413,67560.0,67559.0,0.60407649]
[1729779675608,0.0137413,67560.0,67559.0,0.2877]
[1729779676090,0.1617573,67560.0,67559.0,0.2877]
[1729779676314,0.1617573,67560.0,67559.0,0.091]
[1729779676544,0.1617573,67560.0,67559.0,0.01]